[Event "*** Titled Tuesday 3|2 Blitz"]
[Site "Chess.com"]
[Date "2016.04.05"]
[Round "1"]
[White "GulamaliRises"]
[Black "HansCoolNiemann"]
[Result "1/2-1/2"]
[WhiteElo "2549"]
[BlackElo "2248"]
[TimeControl "180+2"]
[EndTime "11:12:44 PDT"]
[Termination "Game drawn by repetition"]

1. e4 {[%clk 0:02:44.3]} 1... e6 {[%clk 0:02:59.9]} 2. d3 {[%clk 0:02:43.4]}
2... d5 {[%clk 0:02:59.6]} 3. Nd2 {[%clk 0:02:45.3]} 3... c5 {[%clk 0:02:58.6]}
4. Ngf3 {[%clk 0:02:46.6]} 4... Nc6 {[%clk 0:02:57.8]} 5. g3 {[%clk 0:02:47.9]}
5... g6 {[%clk 0:02:58.4]} 6. Bg2 {[%clk 0:02:48.9]} 6... Bg7 {[%clk 0:02:59.7]}
7. O-O {[%clk 0:02:28.5]} 7... Nge7 {[%clk 0:02:59.2]} 8. Re1 {[%clk 0:02:14.5]}
8... O-O {[%clk 0:02:58.5]} 9. h4 {[%clk 0:02:04.3]} 9... b6 {[%clk 0:02:52.5]}
10. e5 {[%clk 0:01:56.6]} 10... Qc7 {[%clk 0:02:46.8]} 11. Qe2 {[%clk
0:01:57.3]} 11... Ba6 {[%clk 0:02:42.4]} 12. Nf1 {[%clk 0:01:54.7]} 12... Nf5
{[%clk 0:02:34.6]} 13. c3 {[%clk 0:01:51.5]} 13... Rae8 {[%clk 0:02:33]} 14. g4
{[%clk 0:01:51.9]} 14... Nfe7 {[%clk 0:02:30.6]} 15. Bf4 {[%clk 0:01:11.9]}
15... b5 {[%clk 0:02:09]} 16. Qd2 {[%clk 0:01:02.4]} 16... b4 {[%clk 0:01:52.6]}
17. Ng3 {[%clk 0:01:01.3]} 17... Kh8 {[%clk 0:01:45.1]} 18. Rad1 {[%clk
0:01:00.4]} 18... Ng8 {[%clk 0:01:44.4]} 19. h5 {[%clk 0:00:56.3]} 19... h6
{[%clk 0:01:07.2]} 20. g5 {[%clk 0:00:55.5]} 20... Kh7 {[%clk 0:01:04.3]} 21.
gxh6 {[%clk 0:00:54.8]} 21... Bxh6 {[%clk 0:01:04.3]} 22. Bxh6 {[%clk 0:00:50]}
22... Nxh6 {[%clk 0:01:04.2]} 23. Qf4 {[%clk 0:00:27.3]} 23... Ne7 {[%clk
0:01:01.5]} 24. Ng5+ {[%clk 0:00:26.9]} 24... Kg8 {[%clk 0:00:49.3]} 25. Nxe6
{[%clk 0:00:24.9]} 25... fxe6 {[%clk 0:00:46.5]} 26. Qxh6 {[%clk 0:00:26]} 26...
Nf5 {[%clk 0:00:37.5]} 27. Qxg6+ {[%clk 0:00:26.4]} 27... Qg7 {[%clk 0:00:38]}
28. Nxf5 {[%clk 0:00:27.6]} 28... Qxg6 {[%clk 0:00:38.2]} 29. hxg6 {[%clk
0:00:29.3]} 29... Rxf5 {[%clk 0:00:37.6]} 30. Re3 {[%clk 0:00:28.5]} 30... Rg5
{[%clk 0:00:33.3]} 31. cxb4 {[%clk 0:00:24.1]} 31... cxb4 {[%clk 0:00:28.1]} 32.
Rc1 {[%clk 0:00:21.1]} 32... Rxg6 {[%clk 0:00:26.5]} 33. Rc6 {[%clk 0:00:19.7]}
33... Bb7 {[%clk 0:00:25.4]} 34. Rc7 {[%clk 0:00:20.7]} 34... Rg7 {[%clk
0:00:24.4]} 35. Rg3 {[%clk 0:00:19.6]} 35... Rxg3 {[%clk 0:00:24.5]} 36. fxg3
{[%clk 0:00:21.5]} 36... Ba6 {[%clk 0:00:21.1]} 37. d4 {[%clk 0:00:22.8]} 37...
Bd3 {[%clk 0:00:15]} 38. Rxa7 {[%clk 0:00:22.4]} 38... Bf5 {[%clk 0:00:14.8]}
39. Ra4 {[%clk 0:00:13.8]} 39... Rc8 {[%clk 0:00:15.8]} 40. Rxb4 {[%clk
0:00:14.5]} 40... Rc1+ {[%clk 0:00:16.9]} 41. Kf2 {[%clk 0:00:12.2]} 41... Rc2+
{[%clk 0:00:18.7]} 42. Kf1 {[%clk 0:00:13.9]} 42... Rc1+ {[%clk 0:00:19.3]} 43.
Ke2 {[%clk 0:00:14.9]} 43... Rc2+ {[%clk 0:00:20.7]} 44. Kf1 {[%clk 0:00:16.5]}
44... Rc1+ {[%clk 0:00:16.8]} 45. Kf2 {[%clk 0:00:17.8]} 45... Rc2+ {[%clk
0:00:18]} 46. Ke1 {[%clk 0:00:17.6]} 46... Rxg2 {[%clk 0:00:18.4]} 47. a4 {[%clk
0:00:18.9]} 47... Rg1+ {[%clk 0:00:18]} 48. Kd2 {[%clk 0:00:18.8]} 48... Ra1
{[%clk 0:00:19.6]} 49. Kc3 {[%clk 0:00:18.8]} 49... Kf7 {[%clk 0:00:20.1]} 50.
Kb3 {[%clk 0:00:19.9]} 50... Bg4 {[%clk 0:00:19.6]} 51. Rb6 {[%clk 0:00:12.7]}
51... Bd1+ {[%clk 0:00:18.5]} 52. Kb4 {[%clk 0:00:11.6]} 52... Rxa4+ {[%clk
0:00:19.4]} 53. Kc5 {[%clk 0:00:13.2]} 53... Ra8 {[%clk 0:00:19.2]} 54. b4
{[%clk 0:00:11.8]} 54... Rc8+ {[%clk 0:00:18.7]} 55. Kd6 {[%clk 0:00:13.1]}
55... Rd8+ {[%clk 0:00:19.9]} 56. Kc7 {[%clk 0:00:14.5]} 56... Rf8 {[%clk
0:00:19.2]} 57. Kd7 {[%clk 0:00:15.1]} 57... Ba4+ {[%clk 0:00:18.6]} 58. Kc7
{[%clk 0:00:15.2]} 58... Ke7 {[%clk 0:00:17.4]} 59. Ra6 {[%clk 0:00:15.1]} 59...
Bd7 {[%clk 0:00:18.3]} 60. Ra7 {[%clk 0:00:07.8]} 60... Rc8+ {[%clk 0:00:19.3]}
61. Kb7 {[%clk 0:00:08.9]} 61... Kd8 {[%clk 0:00:20.3]} 62. Ra6 {[%clk 0:00:08]}
62... Rc7+ {[%clk 0:00:20.4]} 63. Kb6 {[%clk 0:00:09.5]} 63... Rc6+ {[%clk
0:00:20.1]} 64. Ka5 {[%clk 0:00:10.4]} 64... Rc4 {[%clk 0:00:21]} 65. b5 {[%clk
0:00:11]} 65... Rxd4 {[%clk 0:00:21.4]} 66. Ra8+ {[%clk 0:00:12]} 66... Kc7
{[%clk 0:00:21.5]} 67. Ra7+ {[%clk 0:00:13.6]} 67... Kc8 {[%clk 0:00:20.7]} 68.
Kb6 {[%clk 0:00:13.9]} 68... Kd8 {[%clk 0:00:19.3]} 69. Ra8+ {[%clk 0:00:14.2]}
69... Bc8 {[%clk 0:00:20.4]} 70. Kc6 {[%clk 0:00:12.8]} 70... Rc4+ {[%clk
0:00:21.7]} 71. Kd6 {[%clk 0:00:13.6]} 71... Rb4 {[%clk 0:00:21.8]} 72. Kc5
{[%clk 0:00:15.1]} 72... Rb1 {[%clk 0:00:21.9]} 73. Ra7 {[%clk 0:00:16.1]} 73...
Bd7 {[%clk 0:00:22]} 74. Ra8+ {[%clk 0:00:16.8]} 74... Kc7 {[%clk 0:00:22.3]}
75. Ra7+ {[%clk 0:00:17.8]} 75... Kc8 {[%clk 0:00:23.3]} 76. Ra5 {[%clk
0:00:17]} 76... Rxb5+ {[%clk 0:00:20.6]} 77. Rxb5 {[%clk 0:00:18.1]} 77... Bxb5
{[%clk 0:00:20.9]} 78. Kxb5 {[%clk 0:00:20]} 78... Kd7 {[%clk 0:00:22.4]} 79.
Kc5 {[%clk 0:00:21]} 79... Ke7 {[%clk 0:00:22.6]} 80. Kd4 {[%clk 0:00:22.5]}
80... Kf7 {[%clk 0:00:24]} 81. Ke3 {[%clk 0:00:23.4]} 81... Kg6 {[%clk
0:00:25.3]} 82. Kf4 {[%clk 0:00:25]} 82... Kh5 {[%clk 0:00:25.8]} 83. g4+ {[%clk
0:00:24.1]} 83... Kh4 {[%clk 0:00:25.7]} 84. Kf3 {[%clk 0:00:23.7]} 84... Kg5
{[%clk 0:00:24.2]} 85. Kg3 {[%clk 0:00:25.1]} 85... Kg6 {[%clk 0:00:23.9]} 86.
Kf3 {[%clk 0:00:16.8]} 86... Kg5 {[%clk 0:00:23.9]} 87. Kg3 {[%clk 0:00:11.2]}
87... Kg6 {[%clk 0:00:23.7]} 88. Kf3 {[%clk 0:00:12.2]} 88... Kh6 {[%clk
0:00:24.8]} 89. Kg3 {[%clk 0:00:12.5]} 89... Kg5 {[%clk 0:00:25.3]} 90. Kf3
{[%clk 0:00:13.2]} 90... Kg6 {[%clk 0:00:25.3]} 91. Kg3 {[%clk 0:00:13.9]} 91...
Kf7 {[%clk 0:00:26.7]} 92. Kf3 {[%clk 0:00:13.7]} 92... Ke7 {[%clk 0:00:27]} 93.
Kf4 {[%clk 0:00:14.7]} 93... Kf7 {[%clk 0:00:27.5]} 94. Kg3 {[%clk 0:00:15.8]}
94... Kg6 {[%clk 0:00:28.4]} 95. Kf3 {[%clk 0:00:17.3]} 1/2-1/2